Workbook

Sheet Керны
A1: Протокол не может быть воспроизведен полностью или частично без письменного разрешения испытательной лаборатории
I3: "Название лаборатории"
I4: "адрес организации"
I5: =S42 -> Аттестат аккредитации испытательной лаборатории
I6: =T42 -> RU
A8: ="Протокол №"&TEXT(A40,"#####") -> Протокол №2
A9: определения прочности бетона по образцам, отобранным из конструкции (кернов)
A10: ="Акт отбора пробы: №"&TEXT(B40,"#####")&" от "&TEXT(D29,"дд.ММ.гггг") -> Акт отбора пробы: №2 от 25.04.2020
A11: ="Наименование объекта: "&J40 -> Наименование объекта: участок
A12: Наименование бетонируемой конструкции: | E12: =G40 -> БНС
A13: Марка бетона: | C13: =I40 -> В25 F200(I) W6
A14: Цель испытаний: Контроль прочности бетонных образцов-цилиндров (кернов)
A15: 1. Место отбора: | C15: =H40 -> Участок
A16: 2. Место испытания: Строительная лаборатория
A17: ="3. Дата испытания: "&TEXT(E29,"дд.ММ.гггг\г.") -> 3. Дата испытания: 30.04.2020г.
A18: 4. Условия испытаний: 1. Температура воздуха, оС : | F18: =L40 -> 21 | G18: 2. Относительная влажность, % : | J18: =M40 -> 58
A19: 5. Средства измерений используемых при испытаниях: | Q19: Внимание
A20: =K40 -> Испытательная машина CYBERTRONIC C055 зав.№C055P149/ZL/0005 свидетельство о поверке № 1/14324 действительно до 28 октября 2020 г. | Q20: Данные заполнять на листе "Данные для протокола".
A21: =K41 -> Штангенциркуль ШЦ 1-150-0.05 зав.№8103469 свидетельство о поверке № 1/15294 до 18 ноября 2020 г. | Q21: Выделить четыре строки и столбцы от A до T
A22: Весы ПВм-3/32-ЖКИ-П зав.№215539 свидетельство о поверке №1/9333 до 10 июля 2020 г. | Q22: Вставить выделенные ячейки на листе "Керны" в ячейку "А40"
A23: Методика проведения испытаний: Испытание образцов из кернов ГОСТ 10180-2012 «Бетоны. Методы определения прочности по контрольным образцам».
A24: Обработка результатов испытаний: ГОСТ 28570-2019 «Методы определения прочности по образцам, отобранным из конструкции».
A25: Результаты испытаний
A26: № п/п | B26: Маркировка образца | C26: Дата | F26: Масса образца, г | G26: Размеры образца, см | I26: Площадь рабочего сечения образца, см2 | J26: Объем образца, см3 | K26: Средняя плотность образца, г/см3 | L26: Разрушающая нагрузка, кН | M26: Прочность бетона образца Rобр | N26: Прочность бетона образца, приведенная к базовому размеру, МПа | P26: Требуемая прочность, МПа
C27: Дата бетонирования | D27: Отбора проб | E27: испытания | G27: Диаметр | H27: Высота | N27: Отдельного образца | O27: Среднее значение всех испытанных образцов
A28: 1 | B28: 2 | C28: 3 | D28: 4 | E28: 5 | F28: 6 | G28: 7 | H28: 8 | I28: 9 | J28: 10 | K28: 11 | L28: 12 | M28: 13 | N28: 14 | O28: 15 | P28: 16
A29: 1 | B29: =F40 -> 2.21(1) | C29: =$C$40 -> 2020-03-06 | D29: =$D$40 -> 2020-04-25 | E29: =$E$40 -> 2020-04-30 | F29: =N40 -> 1686 | G29: =O40 -> 9.4 | H29: =P40 -> 10 | I29: =G29*G29*3.14/4 -> 69.3626 | J29: =I29*H29 -> 693.626 | K29: =F29/J29 -> 2.430704731 | L29: =Q40 -> 315.5 | M29: =L29/I29*10 -> 45.48560752 | N29: =M29*VLOOKUP(H29/G29,'справочные и расчетные данные'!C3:D16,2,FALSE)*VLOOKUP(G29,'справочные и расчетные данные'!N3:O6,1,TRUE) -> 47.30503182 | O29: =AVERAGE(N29:N32) -> 44.71487516 | P29: =R40 -> 32.1
A30: 2 | B30: =F41 -> 2.21(2) | C30: =$C$40 -> 2020-03-06 | D30: =$D$40 -> 2020-04-25 | E30: =$E$40 -> 2020-04-30 | F30: =N41 -> 1678 | G30: =O41 -> 9.4 | H30: =P41 -> 10 | I30: =G30*G30*3.14/4 -> 69.3626 | J30: =I30*H30 -> 693.626 | K30: =F30/J30 -> 2.419171138 | L30: =Q41 -> 287.3 | M30: =L30/I30*10 -> 41.42001597 | N30: =M30*VLOOKUP(H30/G30,'справочные и расчетные данные'!C4:D17,2,FALSE)*VLOOKUP(G30,'справочные и расчетные данные'!P2:Q6,1,TRUE) -> 43.07681661
A31: 3 | B31: 2.22(1) | C31: 2020-03-06 | D31: 2020-04-25 | E31: 2020-04-30 | F31: 1688 | G31: 9.4 | H31: 10 | I31: 69.3626 | J31: 693.626 | K31: 2.43358813 | L31: 289.1 | M31: 41.67952182 | N31: =M31*VLOOKUP(H31/G31,'справочные и расчетные данные'!C5:D18,2,FALSE)*VLOOKUP(G31,'справочные и расчетные данные'!R2:S6,1,TRUE) -> 43.34670269
A32: 4 | B32: 2.22(2) | C32: 2020-03-06 | D32: 2020-04-25 | E32: 2020-04-30 | F32: 1668 | G32: 9.4 | H32: 10 | I32: 69.3626 | J32: 693.626 | K32: 2.404754147 | L32: 301 | M32: 43.39514378 | N32: =M32*VLOOKUP(H32/G32,'справочные и расчетные данные'!C6:D19,2,FALSE)*VLOOKUP(G32,'справочные и расчетные данные'!T2:U6,1,TRUE) -> 45.13094953
A33: ="Заключение: Характер разрушения образцов согласно ГОСТ 10180-2012 - удовлетворительный. Прочность бетона в возрасте "&TEXT(E29-C29,"##")&" суток составила "&TEXT(O29/P29*100,"###,0")&"% от требуемой прочности "&TEXT(P29,"##,0")&"МПа." -> Заключение: Характер разрушения образцов согласно ГОСТ 10180-2012 - удовлетворительный. Прочность бетона в возрасте 55 суток составила 139,3% от требуемой прочности 32,1МПа.
C35: =S40 -> Инженер строительной лаборатории | J35: =T40 -> Петров
G37: Начальник строительной лаборатории | J37: Ф.Ф.Ф
A39: номер акта | B39: акт отбора | C39: дата бет | D39: дата отбора | E39: дата исп | F39: маркировка | G39: наим.бет.констр | H39: место отбора | I39: марка бетона | J39: назв объекта | K39: оборудование | L39: температура | M39: влажность | N39: масса | O39: диаметр | P39: высота | Q39: кН | R39: Прочность проект | S39: Должность | T39: ФИО
A40: 2 | B40: 2 | C40: 2020-03-06 | D40: 2020-04-25 | E40: 2020-04-30 | F40: 2.21(1) | G40: БНС | H40: Участок | I40: В25 F200(I) W6 | J40: участок | K40: Испытательная машина CYBERTRONIC C055 зав.№C055P149/ZL/0005 свидетельство о поверке № 1/14324 действительно до 28 октября 2020 г. | L40: 21 | M40: 58 | N40: 1686 | O40: 9.4 | P40: 10 | Q40: 315.5 | R40: 32.1 | S40: Инженер строительной лаборатории | T40: Петров
F41: 2.21(2) | K41: Штангенциркуль ШЦ 1-150-0.05 зав.№8103469 свидетельство о поверке № 1/15294 до 18 ноября 2020 г. | N41: 1678 | O41: 9.4 | P41: 10 | Q41: 287.3
F42: 2.22(1) | K42: Весы ПВм-3/32-ЖКИ-П зав.№215539 свидетельство о поверке №1/9333 до 10 июля 2020 г. | N42: 1688 | O42: 9.4 | P42: 10 | Q42: 289.1 | R42: Аттестат | S42: Аттестат аккредитации испытательной лаборатории | T42: RU
F43: 2.22(2) | N43: 1668 | O43: 9.4 | P43: 10 | Q43: 301

Sheet справочные и расчетные данные
A1: ГОСТ 28570-2019 | C1: 1 образец | E1: 2 образец | G1: 3 образец | I1: 4 образец | L1: Масштабные коэфф. | N1: 1 образец | P1: 2 образец | R1: 3 образец | T1: 4 образец
A2: от | B2: до | C2: h/d | D2: ƞ1 | E2: h/d | F2: ƞ1 | G2: h/d | H2: ƞ1 | I2: h/d | J2: ƞ1 | L2: от | M2: до | N2: α | O2: диаметр | P2: α | Q2: диаметр | R2: α | S2: диаметр | T2: α | U2: диаметр
A3: 0.65 | B3: 0.74 | C3: =IF(B3>=(Керны!$H$29/Керны!$G$29),IF((Керны!$H$29/Керны!$G$29)>=A3, (Керны!$H$29/Керны!$G$29), ""),"") ->  | D3: 0.88 | E3: =IF(B3>=(Керны!$H$30/Керны!$G$30),IF((Керны!$H$30/Керны!$G$30)>=A3, (Керны!$H$30/Керны!$G$30), ""),"") ->  | F3: 0.88 | G3: =IF(B3>=(Керны!$H$31/Керны!$G$31),IF((Керны!$H$31/Керны!$G$31)>=A3, (Керны!$H$31/Керны!$G$31), ""),"") ->  | H3: 0.88 | I3: =IF(B3>=(Керны!$H$32/Керны!$G$32),IF((Керны!$H$32/Керны!$G$32)>=A3, (Керны!$H$32/Керны!$G$32), ""),"") ->  | J3: 0.88 | L3: 44 | M3: 56 | N3: 0.85 | O3: =IF(M3>=(Керны!$G$29*10),IF((Керны!$G$29*10)>=L3, Керны!$G$29, ""),"") ->  | P3: 0.85 | Q3: =IF(M3>=(Керны!$G$30*10),IF((Керны!$G$30*10)>=L3, Керны!$G$30, ""),"") ->  | R3: 0.85 | S3: =IF(M3>=(Керны!$G$31*10),IF((Керны!$G$31*10)>=L3, Керны!$G$31, ""),"") ->  | T3: 0.85 | U3: =IF(M3>=(Керны!$G$32*10),IF((Керны!$G$32*10)>=L3, Керны!$G$32, ""),"") -> 
A4: 0.75 | B4: 0.84 | C4: =IF(B4>=(Керны!$H$29/Керны!$G$29),IF((Керны!$H$29/Керны!$G$29)>=A4, (Керны!$H$29/Керны!$G$29), ""),"") ->  | D4: 0.92 | E4: =IF(B4>=(Керны!$H$30/Керны!$G$30),IF((Керны!$H$30/Керны!$G$30)>=A4, (Керны!$H$30/Керны!$G$30), ""),"") ->  | F4: 0.92 | G4: =IF(B4>=(Керны!$H$31/Керны!$G$31),IF((Керны!$H$31/Керны!$G$31)>=A4, (Керны!$H$31/Керны!$G$31), ""),"") ->  | H4: 0.92 | I4: =IF(B4>=(Керны!$H$32/Керны!$G$32),IF((Керны!$H$32/Керны!$G$32)>=A4, (Керны!$H$32/Керны!$G$32), ""),"") ->  | J4: 0.92 | L4: 57 | M4: 69 | N4: 0.9 | O4: =IF(M4>=(Керны!$G$29*10),IF((Керны!$G$29*10)>=L4, (Керны!$G$29), ""),"") ->  | P4: 0.9 | Q4: =IF(M4>=(Керны!$G$30*10),IF((Керны!$G$30*10)>=L4, Керны!$G$30, ""),"") ->  | R4: 0.9 | S4: =IF(M4>=(Керны!$G$31*10),IF((Керны!$G$31*10)>=L4, Керны!$G$31, ""),"") ->  | T4: 0.9 | U4: =IF(M4>=(Керны!$G$32*10),IF((Керны!$G$32*10)>=L4, Керны!$G$32, ""),"") -> 
A5: 0.85 | B5: 0.94 | C5: =IF(B5>=(Керны!$H$29/Керны!$G$29),IF((Керны!$H$29/Керны!$G$29)>=A5, (Керны!$H$29/Керны!$G$29), ""),"") ->  | D5: 0.96 | E5: =IF(B5>=(Керны!$H$30/Керны!$G$30),IF((Керны!$H$30/Керны!$G$30)>=A5, (Керны!$H$30/Керны!$G$30), ""),"") ->  | F5: 0.96 | G5: =IF(B5>=(Керны!$H$31/Керны!$G$31),IF((Керны!$H$31/Керны!$G$31)>=A5, (Керны!$H$31/Керны!$G$31), ""),"") ->  | H5: 0.96 | I5: =IF(B5>=(Керны!$H$32/Керны!$G$32),IF((Керны!$H$32/Керны!$G$32)>=A5, (Керны!$H$32/Керны!$G$32), ""),"") ->  | J5: 0.96 | L5: 70 | M5: 90 | N5: 0.95 | O5: =IF(M5>=(Керны!$G$29*10),IF((Керны!$G$29*10)>=L5, (Керны!$G$29), ""),"") ->  | P5: 0.95 | Q5: =IF(M5>=(Керны!$G$30*10),IF((Керны!$G$30*10)>=L5, Керны!$G$30, ""),"") ->  | R5: 0.95 | S5: =IF(M5>=(Керны!$G$31*10),IF((Керны!$G$31*10)>=L5, Керны!$G$31, ""),"") ->  | T5: 0.95 | U5: =IF(M5>=(Керны!$G$32*10),IF((Керны!$G$32*10)>=L5, Керны!$G$32, ""),"") -> 
A6: 0.95 | B6: 1.04 | C6: =IF(B6>=(Керны!$H$29/Керны!$G$29),IF((Керны!$H$29/Керны!$G$29)>=A6, (Керны!$H$29/Керны!$G$29), ""),"") ->  | D6: 1 | E6: =IF(B6>=(Керны!$H$30/Керны!$G$30),IF((Керны!$H$30/Керны!$G$30)>=A6, (Керны!$H$30/Керны!$G$30), ""),"") ->  | F6: 1 | G6: =IF(B6>=(Керны!$H$31/Керны!$G$31),IF((Керны!$H$31/Керны!$G$31)>=A6, (Керны!$H$31/Керны!$G$31), ""),"") ->  | H6: 1 | I6: =IF(B6>=(Керны!$H$32/Керны!$G$32),IF((Керны!$H$32/Керны!$G$32)>=A6, (Керны!$H$32/Керны!$G$32), ""),"") ->  | J6: 1 | L6: 90 | M6: 200 | N6: 1 | O6: =IF(M6>=(Керны!$G$29*10),IF((Керны!$G$29*10)>=L6, (Керны!$G$29), ""),"") -> 9.4 | P6: 1 | Q6: =IF(M6>=(Керны!$G$30*10),IF((Керны!$G$30*10)>=L6, Керны!$G$30, ""),"") -> 9.4 | R6: 1 | S6: =IF(M6>=(Керны!$G$31*10),IF((Керны!$G$31*10)>=L6, Керны!$G$31, ""),"") -> 9.4 | T6: 1 | U6: =IF(M6>=(Керны!$G$32*10),IF((Керны!$G$32*10)>=L6, Керны!$G$32, ""),"") -> 9.4
A7: 1.05 | B7: 1.14 | C7: =IF(B7>=(Керны!$H$29/Керны!$G$29),IF((Керны!$H$29/Керны!$G$29)>=A7, (Керны!$H$29/Керны!$G$29), ""),"") -> 1.063829787 | D7: 1.04 | E7: =IF(B7>=(Керны!$H$30/Керны!$G$30),IF((Керны!$H$30/Керны!$G$30)>=A7, (Керны!$H$30/Керны!$G$30), ""),"") -> 1.063829787 | F7: 1.04 | G7: =IF(B7>=(Керны!$H$31/Керны!$G$31),IF((Керны!$H$31/Керны!$G$31)>=A7, (Керны!$H$31/Керны!$G$31), ""),"") -> 1.063829787 | H7: 1.04 | I7: =IF(B7>=(Керны!$H$32/Керны!$G$32),IF((Керны!$H$32/Керны!$G$32)>=A7, (Керны!$H$32/Керны!$G$32), ""),"") -> 1.063829787 | J7: 1.04
A8: 1.15 | B8: 1.24 | C8: =IF(B8>=(Керны!$H$29/Керны!$G$29),IF((Керны!$H$29/Керны!$G$29)>=A8, (Керны!$H$29/Керны!$G$29), ""),"") ->  | D8: 1.08 | E8: =IF(B8>=(Керны!$H$30/Керны!$G$30),IF((Керны!$H$30/Керны!$G$30)>=A8, (Керны!$H$30/Керны!$G$30), ""),"") ->  | F8: 1.08 | G8: =IF(B8>=(Керны!$H$31/Керны!$G$31),IF((Керны!$H$31/Керны!$G$31)>=A8, (Керны!$H$31/Керны!$G$31), ""),"") ->  | H8: 1.08 | I8: =IF(B8>=(Керны!$H$32/Керны!$G$32),IF((Керны!$H$32/Керны!$G$32)>=A8, (Керны!$H$32/Керны!$G$32), ""),"") ->  | J8: 1.08
A9: 1.25 | B9: 1.34 | C9: =IF(B9>=(Керны!$H$29/Керны!$G$29),IF((Керны!$H$29/Керны!$G$29)>=A9, (Керны!$H$29/Керны!$G$29), ""),"") ->  | D9: 1.1 | E9: =IF(B9>=(Керны!$H$30/Керны!$G$30),IF((Керны!$H$30/Керны!$G$30)>=A9, (Керны!$H$30/Керны!$G$30), ""),"") ->  | F9: 1.1 | G9: =IF(B9>=(Керны!$H$31/Керны!$G$31),IF((Керны!$H$31/Керны!$G$31)>=A9, (Керны!$H$31/Керны!$G$31), ""),"") ->  | H9: 1.1 | I9: =IF(B9>=(Керны!$H$32/Керны!$G$32),IF((Керны!$H$32/Керны!$G$32)>=A9, (Керны!$H$32/Керны!$G$32), ""),"") ->  | J9: 1.1
A10: 1.35 | B10: 1.44 | C10: =IF(B10>=(Керны!$H$29/Керны!$G$29),IF((Керны!$H$29/Керны!$G$29)>=A10, (Керны!$H$29/Керны!$G$29), ""),"") ->  | D10: 1.12 | E10: =IF(B10>=(Керны!$H$30/Керны!$G$30),IF((Керны!$H$30/Керны!$G$30)>=A10, (Керны!$H$30/Керны!$G$30), ""),"") ->  | F10: 1.12 | G10: =IF(B10>=(Керны!$H$31/Керны!$G$31),IF((Керны!$H$31/Керны!$G$31)>=A10, (Керны!$H$31/Керны!$G$31), ""),"") ->  | H10: 1.12 | I10: =IF(B10>=(Керны!$H$32/Керны!$G$32),IF((Керны!$H$32/Керны!$G$32)>=A10, (Керны!$H$32/Керны!$G$32), ""),"") ->  | J10: 1.12
A11: 1.45 | B11: 1.54 | C11: =IF(B11>=(Керны!$H$29/Керны!$G$29),IF((Керны!$H$29/Керны!$G$29)>=A11, (Керны!$H$29/Керны!$G$29), ""),"") ->  | D11: 1.13 | E11: =IF(B11>=(Керны!$H$30/Керны!$G$30),IF((Керны!$H$30/Керны!$G$30)>=A11, (Керны!$H$30/Керны!$G$30), ""),"") ->  | F11: 1.13 | G11: =IF(B11>=(Керны!$H$31/Керны!$G$31),IF((Керны!$H$31/Керны!$G$31)>=A11, (Керны!$H$31/Керны!$G$31), ""),"") ->  | H11: 1.13 | I11: =IF(B11>=(Керны!$H$32/Керны!$G$32),IF((Керны!$H$32/Керны!$G$32)>=A11, (Керны!$H$32/Керны!$G$32), ""),"") ->  | J11: 1.13
A12: 1.55 | B12: 1.64 | C12: =IF(B12>=(Керны!$H$29/Керны!$G$29),IF((Керны!$H$29/Керны!$G$29)>=A12, (Керны!$H$29/Керны!$G$29), ""),"") ->  | D12: 1.14 | E12: =IF(B12>=(Керны!$H$30/Керны!$G$30),IF((Керны!$H$30/Керны!$G$30)>=A12, (Керны!$H$30/Керны!$G$30), ""),"") ->  | F12: 1.14 | G12: =IF(B12>=(Керны!$H$31/Керны!$G$31),IF((Керны!$H$31/Керны!$G$31)>=A12, (Керны!$H$31/Керны!$G$31), ""),"") ->  | H12: 1.14 | I12: =IF(B12>=(Керны!$H$32/Керны!$G$32),IF((Керны!$H$32/Керны!$G$32)>=A12, (Керны!$H$32/Керны!$G$32), ""),"") ->  | J12: 1.14
A13: 1.65 | B13: 1.74 | C13: =IF(B13>=(Керны!$H$29/Керны!$G$29),IF((Керны!$H$29/Керны!$G$29)>=A13, (Керны!$H$29/Керны!$G$29), ""),"") ->  | D13: 1.16 | E13: =IF(B13>=(Керны!$H$30/Керны!$G$30),IF((Керны!$H$30/Керны!$G$30)>=A13, (Керны!$H$30/Керны!$G$30), ""),"") ->  | F13: 1.16 | G13: =IF(B13>=(Керны!$H$31/Керны!$G$31),IF((Керны!$H$31/Керны!$G$31)>=A13, (Керны!$H$31/Керны!$G$31), ""),"") ->  | H13: 1.16 | I13: =IF(B13>=(Керны!$H$32/Керны!$G$32),IF((Керны!$H$32/Керны!$G$32)>=A13, (Керны!$H$32/Керны!$G$32), ""),"") ->  | J13: 1.16
A14: 1.75 | B14: 1.84 | C14: =IF(B14>=(Керны!$H$29/Керны!$G$29),IF((Керны!$H$29/Керны!$G$29)>=A14, (Керны!$H$29/Керны!$G$29), ""),"") ->  | D14: 1.18 | E14: =IF(B14>=(Керны!$H$30/Керны!$G$30),IF((Керны!$H$30/Керны!$G$30)>=A14, (Керны!$H$30/Керны!$G$30), ""),"") ->  | F14: 1.18 | G14: =IF(B14>=(Керны!$H$31/Керны!$G$31),IF((Керны!$H$31/Керны!$G$31)>=A14, (Керны!$H$31/Керны!$G$31), ""),"") ->  | H14: 1.18 | I14: =IF(B14>=(Керны!$H$32/Керны!$G$32),IF((Керны!$H$32/Керны!$G$32)>=A14, (Керны!$H$32/Керны!$G$32), ""),"") ->  | J14: 1.18
A15: 1.85 | B15: 1.94 | C15: =IF(B15>=(Керны!$H$29/Керны!$G$29),IF((Керны!$H$29/Керны!$G$29)>=A15, (Керны!$H$29/Керны!$G$29), ""),"") ->  | D15: 1.19 | E15: =IF(B15>=(Керны!$H$30/Керны!$G$30),IF((Керны!$H$30/Керны!$G$30)>=A15, (Керны!$H$30/Керны!$G$30), ""),"") ->  | F15: 1.19 | G15: =IF(B15>=(Керны!$H$31/Керны!$G$31),IF((Керны!$H$31/Керны!$G$31)>=A15, (Керны!$H$31/Керны!$G$31), ""),"") ->  | H15: 1.19 | I15: =IF(B15>=(Керны!$H$32/Керны!$G$32),IF((Керны!$H$32/Керны!$G$32)>=A15, (Керны!$H$32/Керны!$G$32), ""),"") ->  | J15: 1.19
A16: 1.95 | B16: 2.05 | C16: =IF(B16>=(Керны!$H$29/Керны!$G$29),IF((Керны!$H$29/Керны!$G$29)>=A16, (Керны!$H$29/Керны!$G$29), ""),"") ->  | D16: 1.2 | E16: =IF(B16>=(Керны!$H$30/Керны!$G$30),IF((Керны!$H$30/Керны!$G$30)>=A16, (Керны!$H$30/Керны!$G$30), ""),"") ->  | F16: 1.2 | G16: =IF(B16>=(Керны!$H$31/Керны!$G$31),IF((Керны!$H$31/Керны!$G$31)>=A16, (Керны!$H$31/Керны!$G$31), ""),"") ->  | H16: 1.2 | I16: =IF(B16>=(Керны!$H$32/Керны!$G$32),IF((Керны!$H$32/Керны!$G$32)>=A16, (Керны!$H$32/Керны!$G$32), ""),"") ->  | J16: 1.2

Sheet Данные для протокола
A1: номер акта | B1: акт отбора | C1: дата бет | D1: дата отбора | E1: дата исп | F1: маркировка | G1: наим.бет.констр | H1: место отбора | I1: марка бетона | J1: назв объекта | K1: оборудование | L1: температура | M1: влажность | N1: масса | O1: диаметр | P1: высота | Q1: кН | R1: Прочность проект | S1: Должность | T1: ФИО
A3: 1 | B3: 1 | C3: 2020-03-06 | D3: 2020-04-23 | E3: 2020-04-30 | F3: 1.15 | G3: БНС | H3: Участок | I3: В25 F200(I) W6 | J3: участок | K3: Испытательная машина CYBERTRONIC C055 зав.№C055P149/ZL/0005 свидетельство о поверке № 1/14324 действительно до 28 октября 2020 г. | L3: 21 | M3: 58 | N3: 1708 | O3: 9.4 | P3: 10 | Q3: 273.8 | R3: 32.1 | S3: Инженер строительной лаборатории | T3: Иванов
F4: 1.16 | K4: Штангенциркуль ШЦ 1-150-0.05 зав.№8103469 свидетельство о поверке № 1/15294 до 18 ноября 2020 г. | N4: 1684 | O4: 9.4 | P4: 10 | Q4: 238.9
F5: 1.17 | K5: Весы ПВм-3/32-ЖКИ-П зав.№215539 свидетельство о поверке №1/9333 до 10 июля 2020 г. | N5: 1716 | O5: 9.4 | P5: 10 | Q5: 294.2 | R5: Аттестат | S5: Аттестат аккредитации испытательной лаборатории | T5: RU
F6: 1.18 | N6: 1696 | O6: 9.4 | P6: 10 | Q6: 237.3
A8: 2 | B8: 2 | C8: 2020-03-06 | D8: 2020-04-25 | E8: 2020-04-30 | F8: 2.21(1) | G8: БНС | H8: Участок | I8: В25 F200(I) W6 | J8: участок | K8: Испытательная машина CYBERTRONIC C055 зав.№C055P149/ZL/0005 свидетельство о поверке № 1/14324 действительно до 28 октября 2020 г. | L8: 21 | M8: 58 | N8: 1686 | O8: 9.4 | P8: 10 | Q8: 315.5 | R8: 32.1 | S8: Инженер строительной лаборатории | T8: Петров
F9: 2.21(2) | K9: Штангенциркуль ШЦ 1-150-0.05 зав.№8103469 свидетельство о поверке № 1/15294 до 18 ноября 2020 г. | N9: 1678 | O9: 9.4 | P9: 10 | Q9: 287.3
F10: 2.22(1) | K10: Весы ПВм-3/32-ЖКИ-П зав.№215539 свидетельство о поверке №1/9333 до 10 июля 2020 г. | N10: 1688 | O10: 9.4 | P10: 10 | Q10: 289.1 | R10: Аттестат | S10: Аттестат аккредитации испытательной лаборатории | T10: RU
F11: 2.22(2) | N11: 1668 | O11: 9.4 | P11: 10 | Q11: 301
